[Event "Titled Tuesday Blitz May 4 2021"]
[White "Radu, David Cr."]
[Black "Stepak, Yedael"]
[WhiteFideId "1265717"]
[BlackFideId "2800454"]
[WhiteElo "1596"]
[BlackElo "2146"]
[Result "1/2-1/2"]
[Round "08"]
[TimeControl "180+1"]
[Date "2021.05.04"]
[WhiteClock "0:01:11"]
[BlackClock "0:00:14"]

1. e4 {[%clk 0:02:40]}  c5 {[%clk 0:02:58]} 2. Nf3 {[%clk 0:02:40]}  e6 {[%clk 0:02:59]} 3. d4 {[%clk 0:02:40]}  cxd4 {[%clk 0:02:59]} 4. Nxd4 {[%clk 0:02:41]}  a6 {[%clk 0:02:59]} 5. c4 {[%clk 0:02:42]}  Qc7 {[%clk 0:03:00]} 6. Nc3 {[%clk 0:02:41]}  Nf6 {[%clk 0:03:00]} 7. Be3 {[%clk 0:02:41]}  b6 {[%clk 0:02:59]} 8. Be2 {[%clk 0:02:41]}  Bb7 {[%clk 0:02:59]} 9. f3 {[%clk 0:02:42]}  h6 {[%clk 0:02:53]} 10. O-O {[%clk 0:02:41]}  Bd6 {[%clk 0:02:53]} 11. g3 {[%clk 0:02:38]}  Be5 {[%clk 0:02:42]} 12. Qd3 {[%clk 0:02:33]}  g5 {[%clk 0:02:40]} 13. Rac1 {[%clk 0:02:29]}  Qd6 {[%clk 0:02:20]} 14. f4 {[%clk 0:02:24]}  gxf4 {[%clk 0:02:17]} 15. gxf4 {[%clk 0:02:25]}  Rg8+ {[%clk 0:02:17]} 16. Kh1 {[%clk 0:02:24]}  Bxd4 {[%clk 0:02:08]} 17. Bxd4 {[%clk 0:02:23]}  Nxe4 {[%clk 0:01:47]} 18. Nxe4 {[%clk 0:02:21]}  f5 {[%clk 0:01:48]} 19. Bf3 {[%clk 0:02:19]}  fxe4 {[%clk 0:01:45]} 20. Bxe4 {[%clk 0:02:20]}  Nc6 {[%clk 0:01:37]} 21. Bg6+ {[%clk 0:02:16]}  Rxg6 {[%clk 0:01:30]} 22. Qxg6+ {[%clk 0:02:17]}  Kd8 {[%clk 0:01:17]} 23. Bxb6+ {[%clk 0:02:15]}  Kc8 {[%clk 0:01:08]} 24. Qg8+ {[%clk 0:02:10]}  Nd8+ {[%clk 0:01:08]} 25. Kg1 {[%clk 0:02:00]}  Qxb6+ {[%clk 0:01:07]} 26. c5 {[%clk 0:02:00]}  Qc6 {[%clk 0:01:06]} 27. f5 {[%clk 0:01:48]}  Qh1+ {[%clk 0:01:01]} 28. Kf2 {[%clk 0:01:48]}  Qxh2+ {[%clk 0:00:59]} 29. Ke3 {[%clk 0:01:47]}  Qe5+ {[%clk 0:00:58]} 30. Kd3 {[%clk 0:01:46]}  Be4+ {[%clk 0:00:54]} 31. Kd2 {[%clk 0:01:44]}  Qd4+ {[%clk 0:00:50]} 32. Ke1 {[%clk 0:01:39]}  Qe3+ {[%clk 0:00:41]} 33. Kd1 {[%clk 0:01:38]}  Qd3+ {[%clk 0:00:35]} 34. Ke1 {[%clk 0:01:38]}  Rb8 {[%clk 0:00:31]} 35. fxe6 {[%clk 0:01:24]}  dxe6 {[%clk 0:00:27]} 36. Rf8 {[%clk 0:01:14]}  Qe3+ {[%clk 0:00:24]} 37. Kd1 {[%clk 0:01:13]}  Qd3+ {[%clk 0:00:23]} 38. Ke1 {[%clk 0:01:13]}  Qe3+ {[%clk 0:00:15]} 39. Kd1 {[%clk 0:01:12]}  Qd3+ {[%clk 0:00:14]} 40. Ke1 {[%clk 0:01:11]} 1/2-1/2


[Site "https://www.chess.com"]

[Event "Titled Tuesday Blitz May 4 2021"]
[White "Rodin, Mihail"]
[Black "Remizov, Yaroslav"]
[WhiteFideId "4113160"]
[BlackFideId "34134015"]
[WhiteElo "2368"]
[BlackElo "2367"]
[Result "0-1"]
[Round "08"]
[TimeControl "180+1"]
[Date "2021.05.04"]
[WhiteClock "0:00:19"]
[BlackClock "0:00:05"]

1. e4 {[%clk 0:03:00]}  c6 {[%clk 0:02:19]} 2. d4 {[%clk 0:03:00]}  d5 {[%clk 0:02:19]} 3. e5 {[%clk 0:03:00]}  c5 {[%clk 0:02:19]} 4. dxc5 {[%clk 0:03:01]}  e6 {[%clk 0:02:19]} 5. a3 {[%clk 0:03:01]}  Bxc5 {[%clk 0:02:20]} 6. b4 {[%clk 0:03:01]}  Be7 {[%clk 0:02:20]} 7. Nf3 {[%clk 0:03:01]}  a5 {[%clk 0:02:20]} 8. b5 {[%clk 0:03:01]}  Nd7 {[%clk 0:02:20]} 9. Bd3 {[%clk 0:02:59]}  f6 {[%clk 0:02:20]} 10. Bb2 {[%clk 0:02:58]}  Nh6 {[%clk 0:02:20]} 11. O-O {[%clk 0:02:57]}  Nf7 {[%clk 0:02:20]} 12. exf6 {[%clk 0:02:56]}  Bxf6 {[%clk 0:02:21]} 13. Bxf6 {[%clk 0:02:55]}  Qxf6 {[%clk 0:02:22]} 14. c3 {[%clk 0:02:48]}  Kf8 {[%clk 0:02:22]} 15. Re1 {[%clk 0:02:45]}  g6 {[%clk 0:02:20]} 16. Ra2 {[%clk 0:02:39]}  Kg7 {[%clk 0:02:19]} 17. Rae2 {[%clk 0:02:37]}  Nc5 {[%clk 0:02:09]} 18. Bc2 {[%clk 0:02:32]}  Bd7 {[%clk 0:02:08]} 19. a4 {[%clk 0:02:31]}  Rac8 {[%clk 0:02:06]} 20. Ne5 {[%clk 0:02:04]}  Nxe5 {[%clk 0:02:06]} 21. Rxe5 {[%clk 0:02:05]}  Rhf8 {[%clk 0:02:06]} 22. Qe2 {[%clk 0:02:02]}  Ne4 {[%clk 0:02:04]} 23. Rxe4 {[%clk 0:01:53]}  dxe4 {[%clk 0:02:04]} 24. c4 {[%clk 0:01:45]}  Rxc4 {[%clk 0:02:02]} 25. Bb3 {[%clk 0:01:38]}  Rb4 {[%clk 0:01:58]} 26. Nd2 {[%clk 0:01:37]}  Qd4 {[%clk 0:01:42]} 27. Bc2 {[%clk 0:01:21]}  e3 {[%clk 0:01:21]} 28. fxe3 {[%clk 0:01:21]}  Qc3 {[%clk 0:01:21]} 29. Ne4 {[%clk 0:01:15]}  Qe5 {[%clk 0:01:21]} 30. Rd1 {[%clk 0:01:11]}  Be8 {[%clk 0:01:13]} 31. Nd6 {[%clk 0:01:10]}  Rh4 {[%clk 0:00:34]} 32. g3 {[%clk 0:01:10]}  Qh5 {[%clk 0:00:33]} 33. Qxh5 {[%clk 0:01:01]}  Rxh5 {[%clk 0:00:33]} 34. Nxb7 {[%clk 0:01:01]}  Re5 {[%clk 0:00:28]} 35. Nxa5 {[%clk 0:00:58]}  Rxe3 {[%clk 0:00:25]} 36. Nc4 {[%clk 0:00:57]}  Rc3 {[%clk 0:00:24]} 37. Bd3 {[%clk 0:00:57]}  g5 {[%clk 0:00:23]} 38. Nd6 {[%clk 0:00:51]}  Bh5 {[%clk 0:00:22]} 39. Rd2 {[%clk 0:00:46]}  Rc1+ {[%clk 0:00:21]} 40. Kg2 {[%clk 0:00:46]}  Bf3+ {[%clk 0:00:21]} 41. Kh3 {[%clk 0:00:46]}  Rd8 {[%clk 0:00:09]} 42. Be4 {[%clk 0:00:34]}  Rxd6 {[%clk 0:00:04]} 43. Rxd6 {[%clk 0:00:28]}  Bxe4 {[%clk 0:00:04]} 44. Kg4 {[%clk 0:00:24]}  Bf5+ {[%clk 0:00:04]} 45. Kxg5 {[%clk 0:00:24]}  Rc4 {[%clk 0:00:05]} 46. a5 {[%clk 0:00:23]}  h6+ {[%clk 0:00:04]} 47. Kh5 {[%clk 0:00:19]}  Bg6# {[%clk 0:00:05]} 0-1


[Site "https://www.chess.com"]

[Event "Titled Tuesday Blitz May 4 2021"]
[White "Rorrer, Grayson"]
[Black "Gabriel, Robert"]
[WhiteFideId "30944996"]
[BlackFideId "4606477"]
[WhiteElo "2389"]
[BlackElo "2203"]
[Result "1-0"]
[Round "08"]
[TimeControl "180+1"]
[Date "2021.05.04"]
[WhiteClock "0:01:29"]
[BlackClock "0:00:01"]

1. e4 {[%clk 0:03:00]}  c5 {[%clk 0:02:58]} 2. Nf3 {[%clk 0:02:59]}  g6 {[%clk 0:02:57]} 3. d4 {[%clk 0:02:57]}  cxd4 {[%clk 0:02:56]} 4. Qxd4 {[%clk 0:02:58]}  Nf6 {[%clk 0:02:54]} 5. e5 {[%clk 0:02:58]}  Nc6 {[%clk 0:02:52]} 6. Qa4 {[%clk 0:02:59]}  Nd5 {[%clk 0:02:49]} 7. Qe4 {[%clk 0:03:00]}  Nb6 {[%clk 0:02:44]} 8. Nc3 {[%clk 0:03:00]}  Bg7 {[%clk 0:02:41]} 9. Bf4 {[%clk 0:02:59]}  d6 {[%clk 0:02:11]} 10. O-O-O {[%clk 0:02:51]}  Bf5 {[%clk 0:02:09]} 11. Qe3 {[%clk 0:02:44]}  d5 {[%clk 0:01:47]} 12. h4 {[%clk 0:02:36]}  Bg4 {[%clk 0:01:41]} 13. Be2 {[%clk 0:02:35]}  h5 {[%clk 0:01:38]} 14. Kb1 {[%clk 0:02:18]}  Bxf3 {[%clk 0:01:35]} 15. Bxf3 {[%clk 0:02:17]}  e6 {[%clk 0:01:34]} 16. Bg5 {[%clk 0:02:14]}  Qd7 {[%clk 0:01:32]} 17. Ne4 {[%clk 0:01:58]}  Nxe5 {[%clk 0:01:07]} 18. Bf6 {[%clk 0:01:55]}  Nec4 {[%clk 0:01:07]} 19. Bxg7 {[%clk 0:01:32]}  Nxe3 {[%clk 0:01:04]} 20. Nf6+ {[%clk 0:01:32]}  Ke7 {[%clk 0:01:01]} 21. Nxd7 {[%clk 0:01:33]}  Nxd1 {[%clk 0:01:00]} 22. Nxb6 {[%clk 0:01:33]}  Nxf2 {[%clk 0:00:54]} 23. Nxa8 {[%clk 0:01:31]}  Rxa8 {[%clk 0:00:48]} 24. Rf1 {[%clk 0:01:31]}  Ng4 {[%clk 0:00:40]} 25. Bxg4 {[%clk 0:01:32]}  hxg4 {[%clk 0:00:40]} 26. Bf6+ {[%clk 0:01:33]}  Kd6 {[%clk 0:00:39]} 27. Re1 {[%clk 0:01:31]}  Rc8 {[%clk 0:00:37]} 28. c3 {[%clk 0:01:30]}  Rc4 {[%clk 0:00:36]} 29. Kc2 {[%clk 0:01:31]}  b5 {[%clk 0:00:34]} 30. b3 {[%clk 0:01:31]}  Rc6 {[%clk 0:00:31]} 31. Kd3 {[%clk 0:01:30]}  a5 {[%clk 0:00:28]} 32. Be5+ {[%clk 0:01:31]}  Ke7 {[%clk 0:00:26]} 33. g3 {[%clk 0:01:32]}  Rc8 {[%clk 0:00:25]} 34. Rf1 {[%clk 0:01:31]}  a4 {[%clk 0:00:21]} 35. Rf4 {[%clk 0:01:29]}  axb3 {[%clk 0:00:17]} 36. axb3 {[%clk 0:01:30]}  f5 {[%clk 0:00:17]} 37. Rb4 {[%clk 0:01:29]}  Ra8 {[%clk 0:00:04]} 38. Rxb5 {[%clk 0:01:28]}  Ra1 {[%clk 0:00:03]} 39. Rb7+ {[%clk 0:01:29]}  Ke8 {[%clk 0:00:01]} 40. Kd4 {[%clk 0:01:29]} 1-0


[Site "https://www.chess.com"]

[Event "Titled Tuesday Blitz May 4 2021"]
[White "Rosenberg, Evan S"]
[Black "Can, Emre"]
[WhiteFideId "2019299"]
[BlackFideId "6302181"]
[WhiteElo "2154"]
[BlackElo "2503"]
[Result "1-0"]
[Round "08"]
[TimeControl "180+1"]
[Date "2021.05.04"]
[WhiteClock "0:00:02"]
[BlackClock "0:00:06"]

1. Nf3 {[%clk 0:02:59]}  d5 {[%clk 0:02:58]} 2. c4 {[%clk 0:02:59]}  d4 {[%clk 0:02:58]} 3. e3 {[%clk 0:03:00]}  Nc6 {[%clk 0:02:55]} 4. b4 {[%clk 0:02:59]}  dxe3 {[%clk 0:02:53]} 5. fxe3 {[%clk 0:03:00]}  Nxb4 {[%clk 0:02:53]} 6. d4 {[%clk 0:03:00]}  c6 {[%clk 0:02:42]} 7. a3 {[%clk 0:02:48]}  Na6 {[%clk 0:02:42]} 8. Bd3 {[%clk 0:02:49]}  g6 {[%clk 0:02:38]} 9. O-O {[%clk 0:02:49]}  Bg7 {[%clk 0:02:37]} 10. Nc3 {[%clk 0:02:35]}  Nf6 {[%clk 0:02:33]} 11. Rb1 {[%clk 0:02:34]}  O-O {[%clk 0:02:32]} 12. Ne5 {[%clk 0:02:30]}  Nd7 {[%clk 0:02:24]} 13. Nxd7 {[%clk 0:02:25]}  Qxd7 {[%clk 0:02:24]} 14. Qe1 {[%clk 0:01:58]}  b6 {[%clk 0:02:18]} 15. Ne4 {[%clk 0:01:48]}  Nc7 {[%clk 0:02:08]} 16. Kh1 {[%clk 0:01:31]}  Ne8 {[%clk 0:01:53]} 17. Qh4 {[%clk 0:01:31]}  Nf6 {[%clk 0:01:49]} 18. Ng5 {[%clk 0:01:29]}  Qg4 {[%clk 0:01:42]} 19. Qxg4 {[%clk 0:01:06]}  Bxg4 {[%clk 0:01:37]} 20. h3 {[%clk 0:00:58]}  Bd7 {[%clk 0:01:26]} 21. a4 {[%clk 0:00:58]}  e5 {[%clk 0:01:18]} 22. Ba3 {[%clk 0:00:57]}  Rfe8 {[%clk 0:01:15]} 23. Bd6 {[%clk 0:00:57]}  exd4 {[%clk 0:01:11]} 24. exd4 {[%clk 0:00:57]}  h6 {[%clk 0:01:11]} 25. Nf3 {[%clk 0:00:50]}  Ne4 {[%clk 0:01:06]} 26. Bf4 {[%clk 0:00:45]}  Bf5 {[%clk 0:00:45]} 27. Ne5 {[%clk 0:00:33]}  Nd6 {[%clk 0:00:44]} 28. Bxf5 {[%clk 0:00:30]}  Nxf5 {[%clk 0:00:44]} 29. Nxc6 {[%clk 0:00:26]}  Rec8 {[%clk 0:00:34]} 30. d5 {[%clk 0:00:26]}  Bf8 {[%clk 0:00:24]} 31. g4 {[%clk 0:00:23]}  Nd6 {[%clk 0:00:22]} 32. Bxd6 {[%clk 0:00:19]}  Bxd6 {[%clk 0:00:22]} 33. Rbe1 {[%clk 0:00:19]}  Re8 {[%clk 0:00:21]} 34. Kg2 {[%clk 0:00:18]}  a5 {[%clk 0:00:20]} 35. h4 {[%clk 0:00:16]}  Kg7 {[%clk 0:00:20]} 36. h5 {[%clk 0:00:16]}  Rac8 {[%clk 0:00:17]} 37. Kf3 {[%clk 0:00:15]}  Rf8 {[%clk 0:00:13]} 38. Re4 {[%clk 0:00:13]}  Rc7 {[%clk 0:00:12]} 39. Rfe1 {[%clk 0:00:12]}  f5 {[%clk 0:00:11]} 40. Re8 {[%clk 0:00:12]}  fxg4+ {[%clk 0:00:11]} 41. Kxg4 {[%clk 0:00:13]}  gxh5+ {[%clk 0:00:11]} 42. Kxh5 {[%clk 0:00:12]}  Rf5+ {[%clk 0:00:11]} 43. Kg4 {[%clk 0:00:11]}  Rcf7 {[%clk 0:00:12]} 44. Kh3 {[%clk 0:00:09]}  Rg5 {[%clk 0:00:12]} 45. R8e3 {[%clk 0:00:07]}  Rf4 {[%clk 0:00:10]} 46. R1e2 {[%clk 0:00:07]}  Rxc4 {[%clk 0:00:09]} 47. Rg2 {[%clk 0:00:07]}  Rxa4 {[%clk 0:00:07]} 48. Rxg5+ {[%clk 0:00:07]}  hxg5 {[%clk 0:00:07]} 49. Re6 {[%clk 0:00:07]}  Bc5 {[%clk 0:00:08]} 50. d6 {[%clk 0:00:06]}  Ra3+ {[%clk 0:00:08]} 51. Kg4 {[%clk 0:00:05]}  Rd3 {[%clk 0:00:08]} 52. Kxg5 {[%clk 0:00:04]}  Rxd6 {[%clk 0:00:08]} 53. Re7+ {[%clk 0:00:04]}  Kf8 {[%clk 0:00:08]} 54. Rc7 {[%clk 0:00:04]}  a4 {[%clk 0:00:07]} 55. Ne5 {[%clk 0:00:02]}  Rd5 {[%clk 0:00:07]} 56. Kf6 {[%clk 0:00:02]}  Bd4 {[%clk 0:00:06]} 57. Rc8+ {[%clk 0:00:02]} 1-0


[Site "https://www.chess.com"]

[Event "Titled Tuesday Blitz May 4 2021"]
[White "Salinas Herrera, Pablo"]
[Black "Tari, Aryan"]
[WhiteFideId "3407128"]
[BlackFideId "1510045"]
[WhiteElo "2541"]
[BlackElo "2656"]
[Result "1/2-1/2"]
[Round "08"]
[TimeControl "180+1"]
[Date "2021.05.04"]
[WhiteClock "0:00:03"]
[BlackClock "0:00:04"]

1. d4 {[%clk 0:03:00]}  Nf6 {[%clk 0:02:57]} 2. Bf4 {[%clk 0:03:00]}  d5 {[%clk 0:02:57]} 3. e3 {[%clk 0:03:00]}  Bg4 {[%clk 0:02:57]} 4. Qd3 {[%clk 0:02:58]}  Nbd7 {[%clk 0:02:51]} 5. Qb3 {[%clk 0:02:56]}  Rb8 {[%clk 0:02:43]} 6. c4 {[%clk 0:02:56]}  e6 {[%clk 0:02:42]} 7. Nc3 {[%clk 0:02:55]}  dxc4 {[%clk 0:02:38]} 8. Bxc4 {[%clk 0:02:56]}  a6 {[%clk 0:02:38]} 9. f3 {[%clk 0:02:41]}  Bh5 {[%clk 0:02:36]} 10. e4 {[%clk 0:02:41]}  b5 {[%clk 0:02:24]} 11. Be2 {[%clk 0:02:15]}  Nb6 {[%clk 0:02:23]} 12. Rd1 {[%clk 0:02:14]}  Bd6 {[%clk 0:02:07]} 13. Be3 {[%clk 0:01:59]}  Nfd7 {[%clk 0:01:43]} 14. Nh3 {[%clk 0:01:53]}  O-O {[%clk 0:01:42]} 15. O-O {[%clk 0:01:52]}  c6 {[%clk 0:01:16]} 16. Nf4 {[%clk 0:01:47]}  Bg6 {[%clk 0:01:10]} 17. Nxe6 {[%clk 0:01:13]}  Bxh2+ {[%clk 0:01:01]} 18. Kxh2 {[%clk 0:01:13]}  Qh4+ {[%clk 0:01:02]} 19. Kg1 {[%clk 0:01:12]}  fxe6 {[%clk 0:01:03]} 20. Qxe6+ {[%clk 0:01:12]}  Kh8 {[%clk 0:01:01]} 21. Qxc6 {[%clk 0:01:08]}  b4 {[%clk 0:00:50]} 22. Nb1 {[%clk 0:01:06]}  Rbc8 {[%clk 0:00:41]} 23. Qd6 {[%clk 0:01:05]}  Rc2 {[%clk 0:00:42]} 24. Rd2 {[%clk 0:00:57]}  Rfc8 {[%clk 0:00:35]} 25. Bd3 {[%clk 0:00:54]}  R2c6 {[%clk 0:00:29]} 26. Qxb4 {[%clk 0:00:52]}  Nf6 {[%clk 0:00:23]} 27. Bf2 {[%clk 0:00:23]}  Qg5 {[%clk 0:00:20]} 28. d5 {[%clk 0:00:22]}  Nbxd5 {[%clk 0:00:06]} 29. exd5 {[%clk 0:00:22]}  Nxd5 {[%clk 0:00:07]} 30. Qg4 {[%clk 0:00:21]}  Qxg4 {[%clk 0:00:04]} 31. fxg4 {[%clk 0:00:21]}  Bxd3 {[%clk 0:00:04]} 32. Rxd3 {[%clk 0:00:21]}  Nf4 {[%clk 0:00:05]} 33. Rd2 {[%clk 0:00:21]}  h6 {[%clk 0:00:04]} 34. Be3 {[%clk 0:00:20]}  Ng6 {[%clk 0:00:04]} 35. Nc3 {[%clk 0:00:20]}  Ne5 {[%clk 0:00:05]} 36. Rd4 {[%clk 0:00:19]}  Nc4 {[%clk 0:00:04]} 37. Bc1 {[%clk 0:00:20]}  Re6 {[%clk 0:00:03]} 38. g5 {[%clk 0:00:20]}  h5 {[%clk 0:00:03]} 39. Nd5 {[%clk 0:00:18]}  Rd6 {[%clk 0:00:02]} 40. Rfd1 {[%clk 0:00:16]}  Ne5 {[%clk 0:00:02]} 41. Nc3 {[%clk 0:00:15]}  Re6 {[%clk 0:00:02]} 42. Rd8+ {[%clk 0:00:15]}  Rxd8 {[%clk 0:00:02]} 43. Rxd8+ {[%clk 0:00:16]}  Kh7 {[%clk 0:00:03]} 44. Rd1 {[%clk 0:00:14]}  Ng4 {[%clk 0:00:03]} 45. Bf4 {[%clk 0:00:14]}  Kg6 {[%clk 0:00:03]} 46. a4 {[%clk 0:00:13]}  h4 {[%clk 0:00:03]} 47. b4 {[%clk 0:00:13]}  Rc6 {[%clk 0:00:04]} 48. Nd5 {[%clk 0:00:13]}  Rc4 {[%clk 0:00:05]} 49. b5 {[%clk 0:00:12]}  axb5 {[%clk 0:00:03]} 50. axb5 {[%clk 0:00:13]}  Rc5 {[%clk 0:00:04]} 51. b6 {[%clk 0:00:11]}  Rb5 {[%clk 0:00:04]} 52. Bc7 {[%clk 0:00:06]}  Kxg5 {[%clk 0:00:05]} 53. Bd8+ {[%clk 0:00:06]}  Kf5 {[%clk 0:00:05]} 54. Ne7+ {[%clk 0:00:06]}  Ke4 {[%clk 0:00:04]} 55. Nc6 {[%clk 0:00:05]}  Ne3 {[%clk 0:00:04]} 56. Re1 {[%clk 0:00:05]}  Kd3 {[%clk 0:00:03]} 57. Bg5 {[%clk 0:00:02]}  Rxg5 {[%clk 0:00:03]} 58. b7 {[%clk 0:00:02]}  Rxg2+ {[%clk 0:00:03]} 59. Kh1 {[%clk 0:00:02]}  Rb2 {[%clk 0:00:01]} 60. b8=Q {[%clk 0:00:03]}  Rxb8 {[%clk 0:00:02]} 61. Nxb8 {[%clk 0:00:04]}  g5 {[%clk 0:00:02]} 62. Nd7 {[%clk 0:00:04]}  Ke4 {[%clk 0:00:02]} 63. Nf6+ {[%clk 0:00:03]}  Kf3 {[%clk 0:00:03]} 64. Rg1 {[%clk 0:00:03]}  g4 {[%clk 0:00:03]} 65. Kh2 {[%clk 0:00:04]}  h3 {[%clk 0:00:01]} 66. Rg3+ {[%clk 0:00:03]}  Kf4 {[%clk 0:00:02]} 67. Nh5+ {[%clk 0:00:03]}  Ke4 {[%clk 0:00:02]} 68. Nf6+ {[%clk 0:00:03]}  Kf4 {[%clk 0:00:03]} 69. Nh5+ {[%clk 0:00:04]}  Kg5 {[%clk 0:00:03]} 70. Rg1 {[%clk 0:00:05]}  Kxh5 {[%clk 0:00:03]} 71. Ra1 {[%clk 0:00:05]}  Nf5 {[%clk 0:00:03]} 72. Ra4 {[%clk 0:00:04]}  Kh4 {[%clk 0:00:03]} 73. Rf4 {[%clk 0:00:05]}  Ne3 {[%clk 0:00:03]} 74. Re4 {[%clk 0:00:05]}  Nf1+ {[%clk 0:00:03]} 75. Kg1 {[%clk 0:00:05]}  Nd2 {[%clk 0:00:04]} 76. Rf4 {[%clk 0:00:05]}  Kg3 {[%clk 0:00:04]} 77. Rf8 {[%clk 0:00:05]}  Nf3+ {[%clk 0:00:04]} 78. Kh1 {[%clk 0:00:05]}  Nd2 {[%clk 0:00:04]} 79. Re8 {[%clk 0:00:04]}  Nf3 {[%clk 0:00:04]} 80. Rf8 {[%clk 0:00:05]}  Kf2 {[%clk 0:00:05]} 81. Rg8 {[%clk 0:00:04]}  Ne5 {[%clk 0:00:03]} 82. Kh2 {[%clk 0:00:03]}  Nf3+ {[%clk 0:00:02]} 83. Kh1 {[%clk 0:00:04]}  Kg3 {[%clk 0:00:03]} 84. Rxg4+ {[%clk 0:00:03]}  Kxg4 {[%clk 0:00:04]} 1/2-1/2


[Site "https://www.chess.com"]

[Event "Titled Tuesday Blitz May 4 2021"]
[White "Samarth, J Rao"]
[Black "Prydun, Andriy"]
[WhiteFideId "46652370"]
[BlackFideId "14145898"]
[WhiteElo "1514"]
[BlackElo "2033"]
[Result "0-1"]
[Round "08"]
[TimeControl "180+1"]
[Date "2021.05.04"]
[WhiteClock "0:00:01"]
[BlackClock "0:01:40"]

1. c4 {[%clk 0:03:00]}  c6 {[%clk 0:02:59]} 2. d4 {[%clk 0:03:00]}  d5 {[%clk 0:03:00]} 3. e3 {[%clk 0:03:00]}  Nf6 {[%clk 0:03:01]} 4. Nf3 {[%clk 0:02:58]}  e6 {[%clk 0:03:01]} 5. Nbd2 {[%clk 0:02:57]}  Nbd7 {[%clk 0:03:01]} 6. b3 {[%clk 0:02:57]}  Bd6 {[%clk 0:03:01]} 7. Bb2 {[%clk 0:02:57]}  Qe7 {[%clk 0:03:02]} 8. Ne5 {[%clk 0:02:57]}  Ba3 {[%clk 0:03:02]} 9. Bc3 {[%clk 0:02:56]}  Bb4 {[%clk 0:03:02]} 10. Bb2 {[%clk 0:02:56]}  Ne4 {[%clk 0:03:02]} 11. Nf3 {[%clk 0:02:45]}  f5 {[%clk 0:02:56]} 12. a3 {[%clk 0:02:40]}  Ba5 {[%clk 0:02:56]} 13. b4 {[%clk 0:02:38]}  Bc7 {[%clk 0:02:56]} 14. c5 {[%clk 0:02:38]}  g5 {[%clk 0:02:55]} 15. Nxe4 {[%clk 0:02:31]}  fxe4 {[%clk 0:02:54]} 16. Nd2 {[%clk 0:02:24]}  O-O {[%clk 0:02:54]} 17. Be2 {[%clk 0:02:24]}  Qg7 {[%clk 0:02:42]} 18. Qc2 {[%clk 0:02:12]}  Nf6 {[%clk 0:02:22]} 19. Nf1 {[%clk 0:02:08]}  h5 {[%clk 0:02:21]} 20. O-O-O {[%clk 0:02:02]}  b5 {[%clk 0:02:16]} 21. cxb6 {[%clk 0:01:29]}  Bxb6 {[%clk 0:02:15]} 22. a4 {[%clk 0:00:59]}  a5 {[%clk 0:02:13]} 23. Qc3 {[%clk 0:00:51]}  axb4 {[%clk 0:02:11]} 24. Qxc6 {[%clk 0:00:42]}  Rb8 {[%clk 0:02:03]} 25. Kb1 {[%clk 0:00:33]}  Rf7 {[%clk 0:02:02]} 26. Qc2 {[%clk 0:00:30]}  b3 {[%clk 0:02:00]} 27. Qxb3 {[%clk 0:00:26]}  Rfb7 {[%clk 0:02:00]} 28. Bb5 {[%clk 0:00:23]}  Bd7 {[%clk 0:01:58]} 29. Bxd7 {[%clk 0:00:17]}  Rxd7 {[%clk 0:01:56]} 30. Rd2 {[%clk 0:00:14]}  Rdb7 {[%clk 0:01:55]} 31. Qa2 {[%clk 0:00:11]}  Ba5 {[%clk 0:01:53]} 32. Rc2 {[%clk 0:00:11]}  Qd7 {[%clk 0:01:50]} 33. Nd2 {[%clk 0:00:08]}  Rb4 {[%clk 0:01:49]} 34. Rhc1 {[%clk 0:00:05]}  Rxa4 {[%clk 0:01:49]} 35. Rc8+ {[%clk 0:00:04]}  Kg7 {[%clk 0:01:46]} 36. Qxa4 {[%clk 0:00:03]}  Rxb2+ {[%clk 0:01:45]} 37. Kxb2 {[%clk 0:00:02]}  Qxa4 {[%clk 0:01:46]} 38. R1c2 {[%clk 0:00:01]}  Bxd2 {[%clk 0:01:43]} 39. Rxd2 {[%clk 0:00:01]}  Qb5+ {[%clk 0:01:40]} 0-1


[Site "https://www.chess.com"]

[Event "Titled Tuesday Blitz May 4 2021"]
[White "Schut, Lisa"]
[Black "Balaji, Aaravamudhan"]
[WhiteFideId "1019481"]
[BlackFideId "436224"]
[WhiteElo "2234"]
[BlackElo "2085"]
[Result "0-1"]
[Round "08"]
[TimeControl "180+1"]
[Date "2021.05.04"]
[WhiteClock "0:00:06"]
[BlackClock "0:00:16"]

1. e4 {[%clk 0:03:00]}  c5 {[%clk 0:02:58]} 2. Nf3 {[%clk 0:03:00]}  Nc6 {[%clk 0:02:59]} 3. g3 {[%clk 0:02:57]}  e5 {[%clk 0:02:58]} 4. Bg2 {[%clk 0:02:56]}  h5 {[%clk 0:02:59]} 5. h4 {[%clk 0:02:55]}  d6 {[%clk 0:03:00]} 6. c3 {[%clk 0:02:54]}  Nf6 {[%clk 0:02:59]} 7. Qc2 {[%clk 0:02:54]}  Rb8 {[%clk 0:02:53]} 8. O-O {[%clk 0:02:53]}  b5 {[%clk 0:02:54]} 9. d4 {[%clk 0:02:49]}  Be7 {[%clk 0:02:53]} 10. d5 {[%clk 0:02:16]}  Na5 {[%clk 0:02:53]} 11. b3 {[%clk 0:02:06]}  Bd7 {[%clk 0:02:51]} 12. Bg5 {[%clk 0:02:05]}  Nh7 {[%clk 0:02:50]} 13. Be3 {[%clk 0:01:53]}  g5 {[%clk 0:02:49]} 14. hxg5 {[%clk 0:01:26]}  Nxg5 {[%clk 0:02:50]} 15. b4 {[%clk 0:01:15]}  Nc4 {[%clk 0:02:49]} 16. bxc5 {[%clk 0:00:56]}  Nxe3 {[%clk 0:02:49]} 17. fxe3 {[%clk 0:00:55]}  Nxf3+ {[%clk 0:02:50]} 18. Rxf3 {[%clk 0:00:51]}  Bg4 {[%clk 0:02:45]} 19. Rf1 {[%clk 0:00:46]}  Bg5 {[%clk 0:02:43]} 20. Qf2 {[%clk 0:00:42]}  Rh7 {[%clk 0:02:35]} 21. c6 {[%clk 0:00:21]}  Qb6 {[%clk 0:02:29]} 22. Re1 {[%clk 0:00:19]}  h4 {[%clk 0:02:28]} 23. Bh1 {[%clk 0:00:16]}  Ke7 {[%clk 0:02:08]} 24. Nd2 {[%clk 0:00:14]}  Rbh8 {[%clk 0:02:07]} 25. Nf1 {[%clk 0:00:12]}  Qc5 {[%clk 0:01:55]} 26. a4 {[%clk 0:00:11]}  hxg3 {[%clk 0:01:44]} 27. Nxg3 {[%clk 0:00:11]}  Rh2 {[%clk 0:01:44]} 28. Qxh2 {[%clk 0:00:11]}  Bxe3+ {[%clk 0:01:45]} 29. Kg2 {[%clk 0:00:09]}  Bf3+ {[%clk 0:01:45]} 30. Kxf3 {[%clk 0:00:09]}  Rxh2 {[%clk 0:01:45]} 31. Rxe3 {[%clk 0:00:10]}  Rh3 {[%clk 0:01:44]} 32. Rae1 {[%clk 0:00:08]}  bxa4 {[%clk 0:01:45]} 33. Kg4 {[%clk 0:00:09]}  Rh8 {[%clk 0:01:40]} 34. Nf5+ {[%clk 0:00:09]}  Kd8 {[%clk 0:01:40]} 35. Rb1 {[%clk 0:00:10]}  Rg8+ {[%clk 0:01:38]} 36. Kf3 {[%clk 0:00:09]}  a3 {[%clk 0:01:14]} 37. Rb8+ {[%clk 0:00:09]}  Kc7 {[%clk 0:01:15]} 38. Rxg8 {[%clk 0:00:10]}  a2 {[%clk 0:01:15]} 39. Rf8 {[%clk 0:00:09]}  a1=Q {[%clk 0:01:08]} 40. Rxf7+ {[%clk 0:00:09]}  Kb6 {[%clk 0:01:08]} 41. Rb7+ {[%clk 0:00:09]}  Ka5 {[%clk 0:00:49]} 42. Bg2 {[%clk 0:00:09]}  a6 {[%clk 0:00:47]} 43. Ne7 {[%clk 0:00:08]}  Qg1 {[%clk 0:00:43]} 44. Re2 {[%clk 0:00:07]}  Qxc3+ {[%clk 0:00:41]} 45. Kg4 {[%clk 0:00:07]}  Qc4 {[%clk 0:00:37]} 46. c7 {[%clk 0:00:04]}  Qxe2+ {[%clk 0:00:37]} 47. Kf5 {[%clk 0:00:05]}  Qgf2+ {[%clk 0:00:28]} 48. Ke6 {[%clk 0:00:05]}  Qg4+ {[%clk 0:00:28]} 49. Kxd6 {[%clk 0:00:05]}  Qf6+ {[%clk 0:00:27]} 50. Kc5 {[%clk 0:00:04]}  Qxe7+ {[%clk 0:00:26]} 51. d6 {[%clk 0:00:04]}  Qed7 {[%clk 0:00:21]} 52. Rb8 {[%clk 0:00:03]}  Qxg2 {[%clk 0:00:15]} 53. c8=Q {[%clk 0:00:03]}  Qxc8+ {[%clk 0:00:16]} 54. Rxc8 {[%clk 0:00:04]}  Qc2+ {[%clk 0:00:17]} 55. Kd5 {[%clk 0:00:04]}  Qxc8 {[%clk 0:00:17]} 56. Kxe5 {[%clk 0:00:05]}  Kb5 {[%clk 0:00:17]} 57. Kd5 {[%clk 0:00:06]}  Qc6+ {[%clk 0:00:17]} 58. Ke6 {[%clk 0:00:06]}  a5 {[%clk 0:00:16]} 59. Ke7 {[%clk 0:00:06]}  Qxe4+ {[%clk 0:00:16]} 0-1


[Site "https://www.chess.com"]